Workbook

Sheet Pension Inputs
L1: Annual Allowance Calculator built by M&G | O1: Tax Year 2024/25
A2: No
H3: For conditional for year joined scheme | I3: Conditional for warnings | L3: What tax year did individual first join a pension? | O3: Instructions for use
A4: 2008/09 | B4: 1 | H4: =IF($C$7>B4,1,0) -> 0 | L4: (If a member prior to 2008/09 tax year select 2008/09). | M4: 2008/09 | O4: Step1: Input tax year first joined a pension scheme.
A5: 2009/10 | B5: 2 | H5: 0 | M5: =IF('Carry Forward Full Workings'!W20>0,"Pension Inputs have been entered for a year prior to scheme membership - please amend.","") ->  | O5: Step2: Calculate tapered AA if applicable using grey button on right hand side.
A6: 2010/11 | B6: 3 | H6: 0 | O6: Step3: Input existing pension input amounts in white boxes. Inputs are required until there is 3 clear years with no AA excess
A7: 2011/12 | B7: 4 | C7: =VLOOKUP(M4,A4:B23,2,FALSE) -> 1 | D7: Added to lookup to capture 2020/23 | H7: 0 | L7: Total inputs for PIPs ending in Tax Year: | M7: Existing Inputs
A8: 2012/13 | B8: 5 | H8: 0 | L8: =A4 -> 2008/09 | M8: 0 | O8: 2008/09 to 2010/11 - Inputs are capped at £50,000 for Carry Forward calculations
A9: 2013/14 | B9: 6 | H9: 0 | L9: =A5 -> 2009/10 | M9: 0
A10: 2014/15 | B10: 7 | H10: 0 | L10: =A6 -> 2010/11 | M10: 0
A11: 2015/16 (pre alignment) | B11: 8 | H11: 0 | L11: =A7 -> 2011/12 | AB11: Suicide Code
A12: 2015/16 (post alignment) | B12: 8.5 | H12: 0 | L12: Inputs prior to 14/10/2010 | M12: 0 | O12: Straddling PIPs - if total inputs are less than or equal to £50,000 then put all in as post 14/10/2010. If total inputs are over £50,000 then you need to enter the pre and post 14/10/10 split of inputs. | AB12: =TODAY() -> 2024-04-08
A13: 2016/17 | B13: 9 | H13: 0 | I13: =IF('Tapered AA Calculations'!L42>0,IF(M20<>'Tapered AA Calculations'!L42,1,0),0) -> 0 | L13: Inputs on or after 14/10/2010 | M13: 0 | AB13: 2025-04-05
A14: 2017/18 | B14: 10 | H14: 0 | I14: =IF('Tapered AA Calculations'!S43>0,IF(M21<>'Tapered AA Calculations'!S43,1,0),0) -> 0 | L14: =A8 -> 2012/13 | M14: 0
A15: 2018/19 | B15: 11 | F15: 0 | H15: 0 | I15: =IF('Tapered AA Calculations'!Z43>0,IF(M22<>'Tapered AA Calculations'!Z43,1,0),0) -> 0 | L15: =A9 -> 2013/14 | M15: 0 | U15: =IF(AND(O20>0,O20<10000),"WARNING - This is less than the minimum taper","") -> 
A16: 2019/20 | B16: 12 | F16: 0 | H16: 0 | I16: =IF('Tapered AA Calculations'!AG43>0,IF(M23<>'Tapered AA Calculations'!AG43,1,0),0) -> 0 | L16: =A10 -> 2014/15 | M16: 0
A17: 2020/21 | B17: 13 | F17: 0 | H17: 0 | I17: =IF('Tapered AA Calculations'!AN43>0,IF(M24<>'Tapered AA Calculations'!AN43,1,0),0) -> 0 | L17: 2015/16
A18: 2021/22 | B18: 14 | H18: 0 | I18: =IF('Tapered AA Calculations'!AU43>0,IF(M25<>'Tapered AA Calculations'!AU43,1,0),0) -> 0 | L18: Inputs prior to 09/07/15 | M18: 0 | O18: Tapered Annual Allowance Details | U18: =IF(AND(O21>0,O21<10000),"WARNING - This is less than the minimum taper","") -> 
A19: 2022/23 | B19: 15 | C19: Added for 2022/23 | F19: 0 | H19: =IF($C$7>B19,1,0) -> 0 | I19: =IF('Tapered AA Calculations'!BB43>0,IF(M26<>'Tapered AA Calculations'!BB43,1,0),0) -> 0 | L19: Inputs on or after 09/07/15 | M19: 0
A20: 2023/24 | B20: 16 | F20: 0 | H20: =IF($C$7>B20,1,0) -> 0 | I20: =IF('Tapered AA Calculations'!BP43>0,IF(M27<>'Tapered AA Calculations'!BP43,1,0),0) -> 0 | L20: =A13 -> 2016/17 | M20: 0 | O20: 0
A21: 2024/25 | B21: 17 | F21: 0 | H21: =IF($C$7>B21,1,0) -> 0 | I21: =IF('Tapered AA Calculations'!BP43>0,IF(M28<>'Tapered AA Calculations'!BP43,1,0),0) -> 0 | L21: =A14 -> 2017/18 | M21: 0 | O21: 0 | U21: =IF(AND(O22>0,O22<10000),"WARNING - This is less than the minimum taper","") -> 
F22: 0 | L22: 2018/19 | M22: 0 | O22: 0 | Q22: Input the taper figures here if known - or select relevant tab(s) to calculate.
F23: 0 | L23: 2019/20 | M23: 0 | O23: 0
L24: 2020/21 | M24: 0 | O24: 0 | U24: =IF(AND(O23>0,O23<10000),"WARNING - This is less than the minimum taper","") -> 
F25: 0 | L25: 2021/22 | M25: 0 | O25: 0
F26: 0 | L26: 2022/23 | M26: 0 | O26: 0
L27: 2023/24 | M27: 0 | O27: 0
F28: 0 | L28: 2024/25 | M28: 0 | O28: 0
F29: 0
F30: 0
F31: 0 | U31: =IF(AND(O24>0,O24<4000),"WARNING - This is less than the minimum taper","") -> 
F32: 0 | M32: Summary Information
F33: 0
F34: 0 | O34: Existing Inputs | U34: =IF(AND(O25>0,O25<4000),"WARNING - This is less than the minimum taper","") ->  | AB34: This is new for 2022/23
M35: Annual Allowance | P35: ='Carry Forward Full Workings'!U5 -> 60000
M36: Total Inputs | P36: ='Carry Forward Full Workings'!U13 -> 0 | Q36: =IF('Tapered AA Calculations'!BP42>0,IF('Tapered AA Calculations'!BP43>=0,IF(M28='Tapered AA Calculations'!BP43,"","Pension inputs above do not equal pension inputs in the 2024/25 taper calculator"),""),"") -> 
M37: Unused allowance from this year | P37: ='Carry Forward Full Workings'!U115 -> 60000 | U37: =IF(AND(O26>0,O26<4000),"WARNING - This is less than the minimum taper","") ->  | AB37: Testing comments
Q38: =IF('Tapered AA Calculations'!L42>0,IF('Tapered AA Calculations'!L43>=0,IF(M20='Tapered AA Calculations'!L43,"","Pension inputs above do not equal pension inputs in the 2016/17 taper calculator"),""),"") ->  | AB38: These warnngs are not present in most of the taper tabs, and need to be added
M39: Carry Forward available from: | Q39: =IF('Tapered AA Calculations'!S42>0,IF('Tapered AA Calculations'!S42>=0,IF(M21='Tapered AA Calculations'!S43,"","Pension inputs above do not equal pension inputs in the 2017/18 taper calculator"),""),"") -> 
Q40: =IF('Tapered AA Calculations'!Z42>0,IF('Tapered AA Calculations'!Z43>=0,IF(M22='Tapered AA Calculations'!Z43,"","Pension inputs above do not equal pension inputs in the 2018/19 taper calculator"),""),"") -> 
M41: =L25 -> 2021/22 | O41: ='Carry Forward Full Workings'!U100 -> 40000 | Q41: =IF('Tapered AA Calculations'!AG42>0,IF('Tapered AA Calculations'!AG43>=0,IF(M23='Tapered AA Calculations'!AG43,"","Pension inputs above do not equal pension inputs in the 2019/20 taper calculator"),""),"") -> 
M42: =L26 -> 2022/23 | O42: ='Carry Forward Full Workings'!U105 -> 40000 | Q42: =IF('Tapered AA Calculations'!AN42>0,IF('Tapered AA Calculations'!AN43>=0,IF(M24='Tapered AA Calculations'!AN43,"","Pension inputs above do not equal pension inputs in the 2020/21 taper calculator"),""),"") -> 
M43: =L27 -> 2023/24 | O43: ='Carry Forward Full Workings'!U110 -> 60000 | P43: =SUM(O41:O43) -> 140000 | Q43: =IF('Tapered AA Calculations'!AU42>0,IF('Tapered AA Calculations'!AU43>=0,IF(M25='Tapered AA Calculations'!AU43,"","Pension inputs above do not equal pension inputs in the 2021/22 taper calculator"),""),"") -> 
Q44: =IF('Tapered AA Calculations'!BB42>0,IF('Tapered AA Calculations'!BB43>=0,IF(M26='Tapered AA Calculations'!BB43,"","Pension inputs above do not equal pension inputs in the 2022/23 taper calculator"),""),"") -> 
M45: Maximum Allowance Remaining This Year | P45: =P43+P37 -> 200000 | Q45: =IF('Tapered AA Calculations'!BI42>0,IF('Tapered AA Calculations'!BI43>=0,IF(M27='Tapered AA Calculations'!BI43,"","Pension inputs above do not equal pension inputs in the 2023/24 taper calculator"),""),"") -> 
M47: Chargeable Amount | P47: ='Carry Forward Full Workings'!U21 -> 0 | Q47: =IF(SUM('Carry Forward Full Workings'!G21:T21)>0,"Please note there have been chargeable amounts in previous tax years","") -> 
M48: See Carry Forward Workings for summary or full calculations
L51: This calculator is designed to give a general demonstration of how a client's pension contributions can determine any unused Annual Allowance; the client may be able to 'carry forward' unused allowance from the last three years to increase their limit for the current tax year. The Annual Allowance calculator takes in the details of the client's previous and expected contributions to their pension arrangements. It then works out if the client could be subject to an Annual Allowance charge; the amount of unused Annual Allowance including any carry forward opportunities. It does not take into account all the possible individual circumstances that may impact on the tax position of the investment. It should not be taken as offering advice or any recommendation. The default values presented on the tool, do not suggest any recommendation from M&G. The information in this modeller is based on our understanding as at March 2023 of current taxation, legislation and HM Revenue & Customs practice all of which is subject to change without notice.

Sheet Carry Forward Summary Workings
A1: Annual Allowance Calculator - Summary Workings built by M&G
B3: ='Pension Inputs'!A18 -> 2021/22 | C3: ='Pension Inputs'!A19 -> 2022/23 | D3: ='Pension Inputs'!A20 -> 2023/24 | E3: ='Pension Inputs'!A21 -> 2024/25
A5: Annual Allowance | B5: ='Carry Forward Full Workings'!R7 -> 40000 | C5: ='Carry Forward Full Workings'!S7 -> 40000 | D5: ='Carry Forward Full Workings'!T7 -> 60000 | E5: ='Carry Forward Full Workings'!U7 -> 60000
A7: Carry Forward | B7: ='Carry Forward Full Workings'!R9 -> 120000 | C7: ='Carry Forward Full Workings'!S9 -> 120000 | D7: ='Carry Forward Full Workings'!T9 -> 120000 | E7: ='Carry Forward Full Workings'!U9 -> 140000
A9: Maximum Allowance | B9: =SUM(B5:B7) -> 160000 | C9: =SUM(C5:C7) -> 160000 | D9: =SUM(D5:D7) -> 180000 | E9: =SUM(E5:E7) -> 200000
A11: Total Inputs | B11: ='Carry Forward Full Workings'!R13 -> 0 | C11: ='Carry Forward Full Workings'!S13 -> 0 | D11: ='Carry Forward Full Workings'!T13 -> 0 | E11: ='Carry Forward Full Workings'!U13 -> 0
A13: Unused | B13: =MAX(0,B5-B11) -> 40000 | C13: =MAX(0,C5-C11) -> 40000 | D13: 60000 | E13: 60000
A15: Excess over standard Annual Allowance | B15: ='Carry Forward Full Workings'!R16 -> 0 | C15: ='Carry Forward Full Workings'!S16 -> 0 | D15: ='Carry Forward Full Workings'!T16 -> 0 | E15: ='Carry Forward Full Workings'!U16 -> 0
A16: =IF((B15+C15+D15)>0,"As there is an excess in the previous three years it's recommended to check the full workings","") -> 
A18: Used by 2022/23 | B18: ='Carry Forward Full Workings'!S99 -> 0
A19: Used by 2023/24 | B19: ='Carry Forward Full Workings'!T99 -> 0 | C19: ='Carry Forward Full Workings'!T104 -> 0
A20: Used by 2024/25 | B20: ='Carry Forward Full Workings'!U99 -> 0 | C20: ='Carry Forward Full Workings'!U104 -> 0 | D20: ='Carry Forward Full Workings'!U109 -> 0
A21: Unused | B21: =MAX(0,B5-B11-B18-B19-B20) -> 40000 | C21: =MAX(0,C5-C11-C18-C19-C20) -> 40000 | D21: =MAX(0,D5-D11-D18-D19-D20) -> 60000 | E21: =MAX(0,E5-E11-E18-E19-E20) -> 60000 | G21: Check conditional formatting, for unused from three years ago and chargable amount warning.
A22: =IF(B21>0,"Please note - the unused allowance from three tax years ago will not be available next tax year","") -> Please note - the unused allowance from three tax years ago will not be available next tax year
A24: Total Allowance Remaining This Year | E24: =MAX(0,E9-E11) -> 200000
A26: Chargeable Amount | B26: =IF('Carry Forward Full Workings'!R21>0,'Carry Forward Full Workings'!R21,"") ->  | C26: =IF('Carry Forward Full Workings'!S21>0,'Carry Forward Full Workings'!S21,"") ->  | D26: =IF('Carry Forward Full Workings'!T21>0,'Carry Forward Full Workings'!T21,"") ->  | E26: =IF('Carry Forward Full Workings'!U21>0,'Carry Forward Full Workings'!U21,"") -> 
A27: =IF(SUM('Carry Forward Full Workings'!G21:Q21)>0,"Please note there have been chargeable amounts in previous tax years","") -> 

Sheet Carry Forward Full Workings
C1: Annual Allowance Calculator - Full Workings built by M&G | F1: ='Pension Inputs'!O1 -> Tax Year 2024/25
K2: 2015/16
D3: 1 | E3: 2 | F3: 3 | G3: 4 | H3: 5 | I3: 6 | J3: 7 | K3: 8 | L3: 8.5 | M3: 9 | N3: 10 | O3: 11 | P3: 12 | Q3: 13 | R3: 14 | S3: 15 | T3: 16 | U3: 17 | W3: ='Pension Inputs'!C7 -> 1 | X3: Inputted tax year joined scheme
D4: ='Pension Inputs'!$A4 -> 2008/09 | E4: ='Pension Inputs'!$A5 -> 2009/10 | F4: ='Pension Inputs'!$A6 -> 2010/11 | G4: ='Pension Inputs'!$A7 -> 2011/12 | H4: ='Pension Inputs'!$A8 -> 2012/13 | I4: ='Pension Inputs'!$A9 -> 2013/14 | J4: ='Pension Inputs'!$A10 -> 2014/15 | K4: Pre Alignment | L4: Post Alignment | M4: ='Pension Inputs'!$A13 -> 2016/17 | N4: ='Pension Inputs'!$A14 -> 2017/18 | O4: ='Pension Inputs'!$A15 -> 2018/19 | P4: ='Pension Inputs'!$A16 -> 2019/20 | Q4: ='Pension Inputs'!$A17 -> 2020/21 | R4: ='Pension Inputs'!$A18 -> 2021/22 | S4: ='Pension Inputs'!$A19 -> 2022/23 | T4: ='Pension Inputs'!$A20 -> 2023/24 | U4: ='Pension Inputs'!$A21 -> 2024/25
C5: Annual Allowance Limit | D5: 50000 | E5: 50000 | F5: 50000 | G5: 50000 | H5: 50000 | I5: 50000 | J5: 40000 | K5: 80000 | L5: 40000 | M5: =IF('Pension Inputs'!O20>0,'Pension Inputs'!O20,'Tapered AA Calculations'!K35) -> 40000 | N5: =IF('Pension Inputs'!O21>0,'Pension Inputs'!O21,'Tapered AA Calculations'!R35) -> 40000 | O5: =IF('Pension Inputs'!O22>0,'Pension Inputs'!O22,'Tapered AA Calculations'!Y35) -> 40000 | P5: =IF('Pension Inputs'!O23>0,'Pension Inputs'!O23,'Tapered AA Calculations'!AF35) -> 40000 | Q5: =IF('Pension Inputs'!O24>0,'Pension Inputs'!O24,'Tapered AA Calculations'!AM35) -> 40000 | R5: =IF('Pension Inputs'!O25>0,'Pension Inputs'!O25,'Tapered AA Calculations'!AT35) -> 40000 | S5: =IF('Pension Inputs'!O26>0,'Pension Inputs'!O26,'Tapered AA Calculations'!BA35) -> 40000 | T5: =IF('Pension Inputs'!O27>0,'Pension Inputs'!O27,'Tapered AA Calculations'!BH35) -> 60000 | U5: =IF('Pension Inputs'!O28>0,'Pension Inputs'!O28,'Tapered AA Calculations'!BO35) -> 60000
C7: Annual Allowance | D7: =IF(D3<'Pension Inputs'!$C$7,0,D5) -> 50000 | E7: =IF(E3<'Pension Inputs'!$C$7,0,E5) -> 50000 | F7: =IF(F3<'Pension Inputs'!$C$7,0,F5) -> 50000 | G7: =IF(G3<'Pension Inputs'!$C$7,0,G5) -> 50000 | H7: =IF(H3<'Pension Inputs'!$C$7,0,H5) -> 50000 | I7: =IF(I3<'Pension Inputs'!$C$7,0,I5) -> 50000 | J7: =IF(J3<'Pension Inputs'!$C$7,0,J5) -> 40000 | K7: =IF(K3<'Pension Inputs'!$C$7,0,K5) -> 80000 | L7: =IF(W3=L3,L5,0) -> 0 | M7: =IF(M3<'Pension Inputs'!$C$7,0,M5) -> 40000 | N7: =IF(N3<'Pension Inputs'!$C$7,0,N5) -> 40000 | O7: =IF(O3<'Pension Inputs'!$C$7,0,O5) -> 40000 | P7: =IF(P3<'Pension Inputs'!$C$7,0,P5) -> 40000 | Q7: =IF(Q3<'Pension Inputs'!$C$7,0,Q5) -> 40000 | R7: =IF(R3<'Pension Inputs'!$C$7,0,R5) -> 40000 | S7: =IF(S3<'Pension Inputs'!$C$7,0,S5) -> 40000 | T7: =IF(T3<'Pension Inputs'!$C$7,0,T5) -> 60000 | U7: =IF(U3<'Pension Inputs'!$C$7,0,U5) -> 60000
C9: Carry Forward | D9: 0 | E9: =E28 -> 50000 | F9: =F28+F33 -> 100000 | G9: =G28+G33+G38 -> 150000 | H9: =H33+H38+H43 -> 150000 | I9: =I38+I43+I48 -> 150000 | J9: =J43+J48+J53 -> 150000 | K9: =K48+K53+K58 -> 140000 | L9: =L48+L53+L58+L63 -> 180000 | M9: =M53+M58+M63+M70 -> 130000 | N9: =N58+N63+N68+N73 -> 120000 | O9: =O78+O73+O68+O63 -> 120000 | P9: =P83+P78+P73 -> 120000 | Q9: =Q88+Q83+Q78 -> 120000 | R9: =R93+R88+R83 -> 120000 | S9: =S98+S93+S88 -> 120000 | T9: =T103+T98+T93 -> 120000 | U9: =U108+U103+U98 -> 140000
C11: Maximum Allowance | D11: N/A | E11: N/A | F11: N/A | G11: =SUM(G7:G9) -> 200000 | H11: 200000 | I11: 200000 | J11: 190000 | K11: 220000 | L11: =SUM(L7:L9) -> 180000 | M11: 170000 | N11: 160000 | O11: 160000 | P11: 160000 | Q11: =SUM(Q7:Q9) -> 160000 | R11: =SUM(R7:R9) -> 160000 | S11: =SUM(S7:S9) -> 160000 | T11: =SUM(T7:T9) -> 180000 | U11: =SUM(U7:U9) -> 200000
C13: Total Inputs (08/09, 09/10 & 10/11 inputs capped at £50,000) | D13: =IF(D3<W3,0,MIN(50000,'Pension Inputs'!M8)) -> 0 | E13: =IF(E3<W3,0,MIN(50000,'Pension Inputs'!M9)) -> 0 | F13: =IF(F3<W3,0,MIN(50000,'Pension Inputs'!M10)) -> 0 | G13: =IF(G3<W3,0,('Pension Inputs'!M12+'Pension Inputs'!M13)) -> 0 | H13: =IF(H3<W3,0,'Pension Inputs'!$M14) -> 0 | I13: =IF(I3<W3,0,'Pension Inputs'!$M15) -> 0 | J13: =IF(J3<W3,0,'Pension Inputs'!$M16) -> 0 | K13: =IF(K3<W3,0,'Pension Inputs'!M18) -> 0 | L13: =IF(L3<W3,0,'Pension Inputs'!M19) -> 0 | M13: =IF(M3<W3,0,'Pension Inputs'!$M20) -> 0 | N13: =IF(N3<W3,0,'Pension Inputs'!$M21) -> 0 | O13: =IF(O3<W3,0,'Pension Inputs'!$M22) -> 0 | P13: =IF(P3<W3,0,'Pension Inputs'!$M23) -> 0 | Q13: =IF(Q3<$W$3,0,'Pension Inputs'!$M24) -> 0 | R13: =IF(R3<$W$3,0,'Pension Inputs'!$M25) -> 0 | S13: =IF(S3<$W$3,0,'Pension Inputs'!$M26) -> 0 | T13: =IF(T3<$W$3,0,'Pension Inputs'!$M27) -> 0 | U13: =IF(U3<$W$3,0,'Pension Inputs'!$M28) -> 0
D15: =MIN(0,D7-D13) -> 0 | E15: =MIN(0,E7-E13) -> 0 | F15: =MIN(0,F7-F13) -> 0 | G15: =H132*-1 -> 0 | H15: =MIN(0,H7-H13) -> 0 | I15: 0 | J15: 0 | K15: 0 | L15: 0 | M15: 0 | N15: 0 | O15: 0 | P15: =MIN(0,P7-P13) -> 0 | Q15: 0 | R15: 0 | S15: 0 | T15: 0 | U15: 0
C16: Excess over standard Annual Allowance | D16: =D15*-1 -> 0 | E16: 0 | F16: 0 | G16: =G15*-1 -> 0 | H16: 0 | I16: 0 | J16: 0 | K16: 0 | L16: =L15*-1 -> 0 | M16: 0 | N16: 0 | O16: 0 | P16: 0 | Q16: =Q15*-1 -> 0 | R16: =R15*-1 -> 0 | S16: =S15*-1 -> 0 | T16: =T15*-1 -> 0 | U16: =U15*-1 -> 0
C18: Chargeable Amount logic | G18: =IF(G21>0,1,0) -> 0 | H18: =IF(H21>0,1,0) -> 0 | I18: 0 | J18: 0 | K18: 0 | L18: 0 | M18: 0 | N18: 0 | O18: 0 | P18: 0 | Q18: 0 | R18: 0 | S18: 0 | T18: 0 | U18: 0
C19: In scheme (based on inputs) | D19: =IF(D3>=$W$3,"YES",IF(SUM($D$13:D13)>0,"YES","NO")) -> YES | E19: =IF(E3>=$W$3,"YES",IF(SUM($D$13:E13)>0,"YES","NO")) -> YES | F19: =IF(F3>=$W$3,"YES",IF(SUM($D$13:F13)>0,"YES","NO")) -> YES | G19: =IF(G3>=$W$3,"YES",IF(SUM($D$13:G13)>0,"YES","NO")) -> YES | H19: =IF(H3>=$W$3,"YES",IF(SUM($D$13:H13)>0,"YES","NO")) -> YES | I19: =IF(I3>=$W$3,"YES",IF(SUM($D$13:I13)>0,"YES","NO")) -> YES | J19: =IF(J3>=$W$3,"YES",IF(SUM($D$13:J13)>0,"YES","NO")) -> YES | K19: =IF(K3>=$W$3,"YES",IF(SUM($D$13:K13)>0,"YES","NO")) -> YES | L19: =IF(L3>=$W$3,"YES",IF(SUM($D$13:L13)>0,"YES","NO")) -> YES | M19: =IF(M3>=$W$3,"YES",IF(SUM($D$13:M13)>0,"YES","NO")) -> YES | N19: =IF(N3>=$W$3,"YES",IF(SUM($D$13:N13)>0,"YES","NO")) -> YES | O19: =IF(O3>=$W$3,"YES",IF(SUM($D$13:O13)>0,"YES","NO")) -> YES | P19: =IF(P3>=$W$3,"YES",IF(SUM($D$13:P13)>0,"YES","NO")) -> YES | Q19: =IF(Q3>=$W$3,"YES",IF(SUM($D$13:Q13)>0,"YES","NO")) -> YES | R19: =IF(R3>=$W$3,"YES",IF(SUM($D$13:R13)>0,"YES","NO")) -> YES | S19: =IF(S3>=$W$3,"YES",IF(SUM($D$13:S13)>0,"YES","NO")) -> YES | T19: =IF(T3>=$W$3,"YES",IF(SUM($D$13:T13)>0,"YES","NO")) -> YES | U19: =IF(U3>=$W$3,"YES",IF(SUM($D$13:U13)>0,"YES","NO")) -> YES | W19: =COUNTIF(D19:K19,"YES") -> 8 | X19: >0 means they had nil allowance post, 0 means they joined after budget (assuming inputs OK)
C20: Date joined scheme wrong (inputs before date selected) | D20: =AND(D3<$W$3,D13>0) -> FALSE | E20: =AND(E3<$W$3,SUM($D$13:E13)>0) -> FALSE | F20: =AND(F3<$W$3,SUM($D$13:F13)>0) -> FALSE | G20: =AND(G3<$W$3,SUM($D$13:G13)>0) -> FALSE | H20: =AND(H3<$W$3,SUM($D$13:H13)>0) -> FALSE | I20: =AND(I3<$W$3,SUM($D$13:I13)>0) -> FALSE | J20: =AND(J3<$W$3,SUM($D$13:J13)>0) -> FALSE | K20: =AND(K3<$W$3,SUM($D$13:K13)>0) -> FALSE | L20: =AND(L3<$W$3,SUM($D$13:L13)>0) -> FALSE | M20: =AND(M3<$W$3,SUM($D$13:M13)>0) -> FALSE | N20: =AND(N3<$W$3,SUM($D$13:N13)>0) -> FALSE | P20: =AND(P3<$W$3,SUM($D$13:P13)>0) -> FALSE | Q20: =AND(Q3<$W$3,SUM($D$13:Q13)>0) -> FALSE | R20: =AND(R3<$W$3,SUM($D$13:R13)>0) -> FALSE | S20: =AND(S3<$W$3,SUM($D$13:S13)>0) -> FALSE | T20: =AND(T3<$W$3,SUM($D$13:T13)>0) -> FALSE | U20: =AND(U3<$W$3,SUM($D$13:U13)>0) -> FALSE | W20: =COUNTIF(D20:T20,TRUE) -> 0 | X20: >0 means warning on summary page:
C21: Chargeable Amount | D21: Inputs are capped at £50,000 | G21: =G41 -> 0 | H21: =H46 -> 0 | I21: =I51 -> 0 | J21: =J56 -> 0 | K21: =K61 -> 0 | L21: =L61 -> 0 | M21: =M71 -> 0 | N21: =N76 -> 0 | O21: =O81 -> 0 | P21: =P86 -> 0 | Q21: =Q91 -> 0 | R21: =R96 -> 0 | S21: =S101 -> 0 | T21: =T106 -> 0 | U21: =U111 -> 0 | W21: Previous cargeable event logic | X21: =IF((SUM(G21:T21)>0),1,0) -> 0
C23: Carry Forward still available this year | G23: =G30+G35+G40 -> 150000 | H23: =H35+H40+H45 -> 150000 | I23: =I40+I45+I50 -> 150000 | J23: =J45+J50+J55 -> 150000 | K23: =K50+K55+K60+K65 -> 180000 | L23: =L50+L55+L60+L65 -> 180000 | M23: =M55+M60+M65+M70 -> 130000 | N23: =N60+N65+N70+N75 -> 120000 | O23: =O65+O70+O75+O80 -> 120000 | P23: =P85+P80+P75 -> 120000 | Q23: =Q90+Q85+Q80 -> 120000 | R23: =R95+R90+R85 -> 120000 | S23: =S100+S95+S90 -> 120000 | T23: =T105+T100+T95 -> 120000 | U23: =U110+U115+U120 -> 120000
C25: Carry Forward Calculations - Existing Inputs | K25: =K2 -> 2015/16
D26: =D4 -> 2008/09 | E26: 2009/10 | F26: 2010/11 | G26: 2011/12 | H26: 2012/13 | I26: 2013/14 | J26: 2014/15 | K26: Pre Alignment | L26: Post Alignment | M26: 2016/17 | N26: 2017/18 | O26: 2018/19 | P26: 2019/20 | Q26: 2020/21 | R26: =R4 -> 2021/22 | S26: 2022/23 | T26: 2023/24 | U26: 2024/25
B27: 1 | C27: ='Pension Inputs'!$A4 -> 2008/09 | R27: 1 | S27: 1
C28: Unused | D28: =D7 -> 50000 | E28: =D30 -> 50000 | F28: =E30 -> 50000 | G28: =F30 -> 50000
C29: Used up | D29: =MIN(D7,D13) -> 0 | E29: 0 | F29: 0 | G29: =IF(G16=0,0,IF(G28-G16<0,G28,G16)) -> 0
C30: Available | D30: =MAX(0,D28-D29) -> 50000 | E30: =MAX(0,E28-E29) -> 50000 | F30: =MAX(0,F28-F29) -> 50000 | G30: =MAX(0,G28-G29) -> 50000
F31: Excess remaining | G31: =G16-G29 -> 0 | H31: =H16 -> 0
B32: 2 | C32: ='Pension Inputs'!$A5 -> 2009/10 | R32: 2 | S32: 2
C33: =C$28 -> Unused | E33: =E7 -> 50000 | F33: =E35 -> 50000 | G33: =F35 -> 50000 | H33: =G35 -> 50000
C34: =C$29 -> Used up | E34: =MIN(E7,E13) -> 0 | F34: 0 | G34: =IF(G16=0,0,IF(G33-G31<0,G33,G31)) -> 0 | H34: =IF(H16=0,0,IF(H33-H31<0,H33,H31)) -> 0
C35: =C$30 -> Available | E35: =E33-E34 -> 50000 | F35: =F33-F34 -> 50000 | G35: =G33-G34 -> 50000 | H35: =H33-H34 -> 50000
F36: Excess remaining | G36: =G31-G34 -> 0 | H36: =H31-H34 -> 0 | I36: =I16 -> 0
B37: 3 | C37: ='Pension Inputs'!$A6 -> 2010/11 | R37: 3 | S37: 3
C38: =C$28 -> Unused | F38: =F7 -> 50000 | G38: =F40 -> 50000 | H38: =G40 -> 50000 | I38: =H40 -> 50000
C39: =C$29 -> Used up | F39: =MIN(F7,F13) -> 0 | G39: =IF(G16=0,0,IF(G38-G36<0,G38,G36)) -> 0 | H39: =IF(H16=0,0,IF(H38-H36<0,H38,H36)) -> 0 | I39: =IF(I15=0,0,IF(((I15*-1)-I29-I34)>I38,I38,(I15*-1)-I29-I34)) -> 0
C40: =C$30 -> Available | F40: =F38-F39 -> 50000 | G40: =G38-G39 -> 50000 | H40: =H38-H39 -> 50000 | I40: =I38-I39 -> 50000
F41: Excess remaining | G41: =G36-G39 -> 0 | H41: =H36-H39 -> 0 | I41: =I36-I39 -> 0 | J41: =J16 -> 0
B42: 4 | C42: ='Pension Inputs'!$A7 -> 2011/12 | R42: 4 | S42: 4
C43: =C$28 -> Unused | G43: =G7 -> 50000 | H43: =G45 -> 50000 | I43: =H45 -> 50000 | J43: =I45 -> 50000
C44: =C$29 -> Used up | G44: =MIN(G7,G13) -> 0 | H44: =IF(H16=0,0,IF(H43-H41<0,H43,H41)) -> 0 | I44: =IF(I16=0,0,IF(I43-I41<0,I43,I41)) -> 0 | J44: =IF(J16=0,0,IF(J43-J41<0,J43,J41)) -> 0
C45: =C$30 -> Available | G45: =MAX(0,G43-G44) -> 50000 | H45: =H43-H44 -> 50000 | I45: =I43-I44 -> 50000 | J45: =J43-J44 -> 50000
G46: Excess remaining | H46: =H41-H44 -> 0 | I46: =I41-I44 -> 0 | J46: =J41-J44 -> 0 | K46: =K16 -> 0
B47: 5 | C47: ='Pension Inputs'!$A8 -> 2012/13 | R47: 5 | S47: 5
C48: =C$28 -> Unused | H48: =H7 -> 50000 | I48: =H50 -> 50000 | J48: =I50 -> 50000 | K48: =J50 -> 50000 | L48: =K50 -> 50000
C49: =C$29 -> Used up | H49: =MIN(H7,H13) -> 0 | I49: =IF(I16=0,0,IF(I48-I46<0,I48,I46)) -> 0 | J49: =IF(J16=0,0,IF(J48-J46<0,J48,J46)) -> 0 | K49: =IF(K16=0,0,IF(K48-K46<0,K48,K46)) -> 0 | L49: =IF(L66=0,0,IF(L48-L66<0,L48,L66)) -> 0
C50: =C$30 -> Available | H50: =H48-H49 -> 50000 | I50: =I48-I49 -> 50000 | J50: =J48-J49 -> 50000 | K50: =K48-K49 -> 50000 | L50: =L48-L49 -> 50000
H51: Excess remaining | I51: =I46-I49 -> 0 | J51: =J46-J49 -> 0 | K51: =K16-K49 -> 0 | L51: =L66-L49 -> 0 | M51: =M16 -> 0
B52: 6 | C52: ='Pension Inputs'!$A9 -> 2013/14 | R52: 6 | S52: 6
C53: =C$28 -> Unused | I53: =I7 -> 50000 | J53: =I55 -> 50000 | K53: =J55 -> 50000 | L53: =K55 -> 50000 | M53: =L55 -> 50000
C54: =C$29 -> Used up | I54: =MIN(I7,I13) -> 0 | J54: =IF(J16=0,0,IF(J53-J51<0,J53,J51)) -> 0 | K54: =IF(K16=0,0,IF(K53-K51<0,K53,K51)) -> 0 | L54: =IF(L51=0,0,IF(L53-L51<0,L53,L51)) -> 0 | M54: =IF(M16=0,0,IF(M53-M51<0,M53,M51)) -> 0
C55: =C$30 -> Available | I55: =I53-I54 -> 50000 | J55: =J53-J54 -> 50000 | K55: =K53-K54 -> 50000 | L55: =L53-L54 -> 50000 | M55: =M53-M54 -> 50000
I56: Excess remaining | J56: =J51-J54 -> 0 | K56: =K51-K54 -> 0 | L56: =L51-L54 -> 0 | M56: =M51-M54 -> 0 | N56: =N16 -> 0
B57: 7 | C57: ='Pension Inputs'!$A10 -> 2014/15 | R57: 7 | S57: 7
C58: =C$28 -> Unused | J58: =J7 -> 40000 | K58: =J60 -> 40000 | L58: =K60 -> 40000 | M58: =L60 -> 40000 | N58: =M60 -> 40000
C59: =C$29 -> Used up | J59: =MIN(J7,J13) -> 0 | K59: =IF(K16=0,0,IF(K58-K56<0,K58,K56)) -> 0 | L59: =IF(L16=0,0,IF(L58-L56<0,L58,L56)) -> 0 | M59: =IF(M16=0,0,IF(M58-M56<0,M58,M56)) -> 0 | N59: =IF(N16=0,0,IF(N58-N56<0,N58,N56)) -> 0
C60: =C$30 -> Available | J60: =J58-J59 -> 40000 | K60: =K58-K59 -> 40000 | L60: =L58-L59 -> 40000 | M60: =M58-M59 -> 40000 | N60: =N58-N59 -> 40000
J61: Excess remaining | K61: =K56-K59 -> 0 | L61: =L56-L59 -> 0 | M61: =M56-M59 -> 0 | N61: =N56-N59 -> 0 | O61: =O16 -> 0
B62: 8 | C62: ='Pension Inputs'!$A11 -> 2015/16 (pre alignment) | R62: 8 | S62: 8
C63: =C$28 -> Unused | K63: =K7 -> 80000 | L63: =K65 -> 40000 | M63: =L65 -> 40000 | N63: =M65 -> 40000 | O63: =N65 -> 40000
C64: =C$29 -> Used up | K64: =MIN(K7,K13) -> 0 | L64: =MIN(L63,L13) -> 0 | M64: =IF(M16=0,0,IF(M63-M61<0,M63,M61)) -> 0 | N64: =IF(N16=0,0,IF(N63-N61<0,N63,N61)) -> 0 | O64: =IF(O16=0,0,IF(O63-O61<0,O63,O61)) -> 0
C65: =C$30 -> Available | K65: =MIN(K63-K64,40000) -> 40000 | L65: =L63-L64 -> 40000 | M65: =M63-M64 -> 40000 | N65: =N63-N64 -> 40000 | O65: =O63-O64 -> 40000
K66: Excess remaining | L66: =L16-L64 -> 0 | M66: =M61-M64 -> 0 | N66: =N61-N64 -> 0 | O66: =O61-O64 -> 0 | P66: =P16 -> 0
C67: ='Pension Inputs'!$A12 -> 2015/16 (post alignment)
C68: =C$28 -> Unused | L68: =L7 -> 0 | M68: =L70 -> 0 | N68: =M70 -> 0 | O68: =N70 -> 0
C69: =C$29 -> Used up | L69: =MIN(L7,L13) -> 0 | M69: =IF(M16=0,0,IF(M68-M66<0,M68,M66)) -> 0 | N69: =IF(N16=0,0,IF(N68-N66<0,N68,N66)) -> 0 | O69: =IF(O16=0,0,IF(O68-O66<0,O68,O66)) -> 0
C70: =C$30 -> Available | L70: =L68-L69 -> 0 | M70: =M68-M69 -> 0 | N70: =N68-N69 -> 0 | O70: =O68-O69 -> 0
K71: Excess remaining | L71: =L16 -> 0 | M71: =M66-M69 -> 0 | N71: =N66-N69 -> 0 | O71: =O66-O69 -> 0
B72: 9 | C72: ='Pension Inputs'!$A13 -> 2016/17 | R72: 9 | S72: 9
C73: =C$28 -> Unused | M73: =M7 -> 40000 | N73: =M75 -> 40000 | O73: =N75 -> 40000 | P73: =O75 -> 40000
C74: =C$29 -> Used up | M74: =MIN(M7,M13) -> 0 | N74: =IF(N16=0,0,IF(N73-N71<0,N73,N71)) -> 0 | O74: =IF(O16=0,0,IF(O73-O71<0,O73,O71)) -> 0 | P74: =IF(P16=0,0,IF(P73-P66<0,P73,P66)) -> 0
C75: =C$30 -> Available | M75: =M73-M74 -> 40000 | N75: =N73-N74 -> 40000 | O75: =O73-O74 -> 40000 | P75: =P73-P74 -> 40000
M76: Excess remaining | N76: =N71-N74 -> 0 | O76: =O71-O74 -> 0 | P76: =P66-P74 -> 0 | Q76: =Q16 -> 0
B77: 10 | C77: ='Pension Inputs'!$A14 -> 2017/18
C78: =C$28 -> Unused | N78: =N7 -> 40000 | O78: =N80 -> 40000 | P78: =O80 -> 40000 | Q78: =P80 -> 40000
C79: =C$29 -> Used up | N79: =MIN(N7,N13) -> 0 | O79: =IF(O16=0,0,IF(O78-O76<0,O78,O76)) -> 0 | P79: =IF(P16=0,0,IF(P78-P76<0,P78,P76)) -> 0 | Q79: =IF(Q16=0,0,IF(Q78-Q16<0,Q78,Q16)) -> 0
C80: =C$30 -> Available | N80: =N78-N79 -> 40000 | O80: =O78-O79 -> 40000 | P80: =P78-P79 -> 40000 | Q80: =Q78-Q79 -> 40000
N81: Excess remaining | O81: =O76-O79 -> 0 | P81: =P76-P79 -> 0 | Q81: =Q76-Q79 -> 0 | R81: =R16 -> 0
B82: 11 | C82: ='Pension Inputs'!A15 -> 2018/19
C83: =C$28 -> Unused | O83: =O7 -> 40000 | P83: =O85 -> 40000 | Q83: =P85 -> 40000 | R83: =Q85 -> 40000
C84: =C$29 -> Used up | O84: =MIN(O7,O13) -> 0 | P84: =IF(P16=0,0,IF(P83-P81<0,P83,P81)) -> 0 | Q84: =IF(Q16=0,0,IF(Q83-Q81<0,Q83,Q81)) -> 0 | R84: =IF(R16=0,0,IF(R83-R16<0,R83,R16)) -> 0
C85: =C$30 -> Available | O85: =O83-O84 -> 40000 | P85: =P83-P84 -> 40000 | Q85: =Q83-Q84 -> 40000 | R85: =R83-R84 -> 40000
O86: Excess remaining | P86: =P81-P84 -> 0 | Q86: =Q81-Q84 -> 0 | R86: =R81-R84 -> 0 | S86: =S16 -> 0
C87: ='Pension Inputs'!A16 -> 2019/20
C88: =C$28 -> Unused | P88: =P7 -> 40000 | Q88: =P90 -> 40000 | R88: =Q90 -> 40000 | S88: =R90 -> 40000
C89: =C$29 -> Used up | P89: =MIN(P7,P13) -> 0 | Q89: =IF(Q16=0,0,IF(Q88-Q86<0,Q88,Q86)) -> 0 | R89: =IF(R16=0,0,IF(R88-R86<0,R88,R86)) -> 0 | S89: =IF(S16=0,0,IF(S88-S16<0,S88,S16)) -> 0
C90: =C$30 -> Available | P90: =P88-P89 -> 40000 | Q90: =Q88-Q89 -> 40000 | R90: =R88-R89 -> 40000 | S90: =S88-S89 -> 40000
P91: Excess remaining | Q91: =Q86-Q89 -> 0 | R91: =R86-R89 -> 0 | S91: =S86-S89 -> 0 | T91: =T16 -> 0
C92: ='Pension Inputs'!A17 -> 2020/21
C93: =C$28 -> Unused | Q93: =Q7 -> 40000 | R93: =Q95 -> 40000 | S93: =R95 -> 40000 | T93: =S95 -> 40000
C94: =C$29 -> Used up | Q94: =MIN(Q7,Q13) -> 0 | R94: =IF(R16=0,0,IF(R93-R91<0,R93,R91)) -> 0 | S94: =IF(S16=0,0,IF(S93-S91<0,S93,S91)) -> 0 | T94: =IF(T16=0,0,IF(T93-T91<0,T93,T91)) -> 0
C95: =C$30 -> Available | Q95: =Q93-Q94 -> 40000 | R95: =R93-R94 -> 40000 | S95: =S93-S94 -> 40000 | T95: =T93-T94 -> 40000
Q96: Excess remaining | R96: =R91-R94 -> 0 | S96: =S91-S94 -> 0 | T96: =T91-T94 -> 0 | U96: =U16 -> 0
C97: ='Pension Inputs'!A18 -> 2021/22
C98: =C$28 -> Unused | R98: =R7 -> 40000 | S98: =R100 -> 40000 | T98: =S100 -> 40000 | U98: =T100 -> 40000
C99: =C$29 -> Used up | R99: =MIN(R7,R13) -> 0 | S99: =IF(S16=0,0,IF(S98-S96<0,S98,S96)) -> 0 | T99: =IF(T16=0,0,IF(T98-T96<0,T98,T96)) -> 0 | U99: =IF(U16=0,0,IF(U98-U96<0,U98,U96)) -> 0
C100: =C$30 -> Available | R100: =R98-R99 -> 40000 | S100: =S98-S99 -> 40000 | T100: =T98-T99 -> 40000 | U100: =U98-U99 -> 40000
R101: Excess remaining | S101: =S96-S99 -> 0 | T101: =T96-T99 -> 0 | U101: =U96-U99 -> 0
C102: ='Pension Inputs'!A19 -> 2022/23
C103: =C$28 -> Unused | S103: =S7 -> 40000 | T103: =S105 -> 40000 | U103: =T105 -> 40000
C104: =C$29 -> Used up | S104: =MIN(S7,S13) -> 0 | T104: =IF(T16=0,0,IF(T103-T101<0,T103,T101)) -> 0 | U104: =IF(U16=0,0,IF(U103-U101<0,U103,U101)) -> 0
C105: =C$30 -> Available | S105: =S103-S104 -> 40000 | T105: =T103-T104 -> 40000 | U105: =U103-U104 -> 40000
S106: Excess remaining | T106: =T101-T104 -> 0 | U106: =U101-U104 -> 0
C107: ='Pension Inputs'!A20 -> 2023/24
C108: =C$28 -> Unused | T108: =T7 -> 60000 | U108: =T110 -> 60000
C109: =C$29 -> Used up | T109: =MIN(T7,T13) -> 0 | U109: =IF(U16=0,0,IF(U108-U106<0,U108,U106)) -> 0
C110: =C$30 -> Available | T110: =T108-T109 -> 60000 | U110: =U108-U109 -> 60000
U111: =U106-U109 -> 0
C112: ='Pension Inputs'!A21 -> 2024/25
C113: =C$28 -> Unused | U113: =U7 -> 60000
C114: =C$29 -> Used up | U114: =MIN(U7,U13) -> 0
C115: =C$30 -> Available | U115: =U113-U114 -> 60000
F128: 2010 Straddling PIP calculation
F129: Allowance | G129: Actual | H129: Excess
D130: Pre 14/10/10 | F130: =255000-(MIN(50000,G131)) -> 255000 | G130: ='Pension Inputs'!M12 -> 0 | H130: =MAX(0,G130-F130) -> 0
D131: Post 14/10/10 | F131: =G5 -> 50000 | G131: ='Pension Inputs'!M13 -> 0 | H131: =MAX(0,G131-F131) -> 0
H132: =SUM(H130:H131) -> 0
E133: 2015 Pre and Post Budget PIPs
F134: Allowance | G134: Actual | H134: Excess
E135: Pre 9/7/15 | F135: =K7 -> 80000 | G135: ='Pension Inputs'!M18 -> 0 | H135: =MAX(0,G135-F135) -> 0
E136: Post 9/7/15 | F136: =IF(H135>0,0,MIN(40000,80000-G135)) -> 40000 | G136: ='Pension Inputs'!M19 -> 0 | H136: =MAX(0,G136-F136) -> 0
H137: =SUM(H135:H136) -> 0

Sheet Tapered AA Calculations
E1: Tapered Annual Allowance Calculations built by M&G | G1: 0
B3: Please select the year (or years) that you need to do taper calculations for. | E3: Instructions: Input relevant figures in white boxes. Tapered Allowance will be calculated where relevant. For income definitions see Pensions Tax Manual - PTM057100 | H3: 2016/17 Tax Year | O3: 2017/18 Tax Year | V3: 2018/19 Tax Year | AC3: 2019/20 Tax Year | AJ3: 2020/21 Tax Year | AQ3: 2021/22 Tax Year | AX3: 2022/23 Tax Year | BE3: 2023/24 Tax Year | BL3: 2024/25 Tax Year
J5: Adjusted Income | L5: Threshold Income | Q5: Adjusted Income | S5: Threshold Income | X5: Adjusted Income | Z5: Threshold Income | AE5: Adjusted Income | AG5: Threshold Income | AL5: Adjusted Income | AN5: Threshold Income | AS5: Adjusted Income | AU5: Threshold Income | AZ5: Adjusted Income | BB5: Threshold Income | BG5: Adjusted Income | BI5: Threshold Income | BN5: Adjusted Income | BP5: Threshold Income
E7: Total Income | H7: 0 | J7: =H7 -> 0 | L7: =H7 -> 0 | O7: 0 | Q7: =O7 -> 0 | S7: =O7 -> 0 | V7: 0 | X7: =V7 -> 0 | Z7: =V7 -> 0 | AC7: 0 | AE7: =AC7 -> 0 | AG7: =AC7 -> 0 | AJ7: 0 | AL7: =AJ7 -> 0 | AN7: =AJ7 -> 0 | AQ7: 0 | AS7: =AQ7 -> 0 | AU7: =AQ7 -> 0 | AX7: 0 | AZ7: =AX7 -> 0 | BB7: =AX7 -> 0 | BE7: 0 | BG7: =BE7 -> 0 | BI7: =BE7 -> 0 | BL7: 0 | BN7: =BL7 -> 0 | BP7: =BL7 -> 0
E8: (please remember to deduct net pay contributions from this figure) | J8: - | L8: - | Q8: - | S8: - | X8: - | Z8: - | AE8: - | AG8: - | AL8: - | AN8: - | AS8: - | AU8: - | AZ8: - | BB8: - | BG8: - | BI8: - | BN8: - | BP8: -
E10: Allowable Reliefs | H10: 0 | J10: =H10 -> 0 | L10: =H10 -> 0 | O10: 0 | Q10: =O10 -> 0 | S10: =O10 -> 0 | V10: 0 | X10: =V10 -> 0 | Z10: =V10 -> 0 | AC10: 0 | AE10: =AC10 -> 0 | AG10: =AC10 -> 0 | AJ10: 0 | AL10: =AJ10 -> 0 | AN10: =AJ10 -> 0 | AQ10: 0 | AS10: =AQ10 -> 0 | AU10: =AQ10 -> 0 | AX10: 0 | AZ10: =AX10 -> 0 | BB10: =AX10 -> 0 | BE10: 0 | BG10: =BE10 -> 0 | BI10: =BE10 -> 0 | BL10: 0 | BN10: =BL10 -> 0 | BP10: =BL10 -> 0
J11: + | Q11: + | X11: + | AE11: + | AL11: + | AS11: + | AZ11: + | BG11: + | BN11: +
E12: Net Pay Contributions | H12: 0 | J12: =H12 -> 0 | O12: 0 | Q12: =O12 -> 0 | V12: 0 | X12: =V12 -> 0 | AC12: 0 | AE12: =AC12 -> 0 | AJ12: 0 | AL12: =AJ12 -> 0 | AQ12: 0 | AS12: =AQ12 -> 0 | AX12: 0 | AZ12: =AX12 -> 0 | BE12: 0 | BG12: =BE12 -> 0 | BL12: 0 | BN12: =BL12 -> 0
E13: (including any s226 contributions) | L13: - | S13: - | Z13: - | AG13: - | AN13: - | AU13: - | BB13: - | BI13: - | BP13: -
E15: Relief at Source contributions (Gross) | H15: 0 | L15: =H15 -> 0 | O15: 0 | S15: =O15 -> 0 | V15: 0 | Z15: =V15 -> 0 | AC15: 0 | AG15: =AC15 -> 0 | AJ15: 0 | AN15: =AJ15 -> 0 | AQ15: 0 | AU15: =AQ15 -> 0 | AX15: 0 | BB15: =AX15 -> 0 | BE15: 0 | BI15: =BE15 -> 0 | BL15: 0 | BP15: =BL15 -> 0
J16: + | Q16: + | X16: + | AE16: + | AL16: + | AS16: + | AZ16: + | BG16: + | BN16: +
E17: Value of employer pension contributions
E18: Employer Penson Contributions to Money Purchase | H18: 0 | J18: =H18 -> 0 | O18: 0 | Q18: =O18 -> 0 | V18: 0 | X18: =V18 -> 0 | AC18: 0 | AE18: =AC18 -> 0 | AJ18: 0 | AL18: =AJ18 -> 0 | AQ18: 0 | AS18: =AQ18 -> 0 | AX18: 0 | AZ18: =AX18 -> 0 | BE18: 0 | BG18: =BE18 -> 0 | BL18: 0 | BN18: =BL18 -> 0
J19: + | Q19: + | X19: + | AE19: + | AL19: + | AS19: + | AZ19: + | BG19: + | BN19: +
E20: Total DB Pension Input Amount for year | H20: 0 | J20: =H20 -> 0 | O20: 0 | Q20: =O20 -> 0 | V20: 0 | X20: =V20 -> 0 | AC20: 0 | AE20: =AC20 -> 0 | AJ20: 0 | AL20: =AJ20 -> 0 | AQ20: 0 | AS20: =AQ20 -> 0 | AX20: 0 | AZ20: =AX20 -> 0 | BE20: 0 | BG20: =BE20 -> 0 | BL20: 0 | BN20: =BL20 -> 0
J21: - | Q21: - | X21: - | AE21: - | AL21: - | AS21: - | AZ21: - | BG21: - | BN21: -
E22: Total gross employee contribution to DB scheme(s) included above | H22: 0 | J22: =H22 -> 0 | O22: 0 | Q22: =O22 -> 0 | V22: 0 | X22: =V22 -> 0 | AC22: 0 | AE22: =AC22 -> 0 | AJ22: 0 | AL22: =AJ22 -> 0 | AQ22: 0 | AS22: =AQ22 -> 0 | AX22: 0 | AZ22: =AX22 -> 0 | BE22: 0 | BG22: =BE22 -> 0 | BL22: 0 | BN22: =BL22 -> 0
L24: + | S24: + | Z24: + | AG24: + | AN24: + | AU24: + | BB24: + | BI24: + | BP24: +
E25: Employment Income given up post 09/07/15 | H25: 0 | L25: =H25 -> 0 | O25: 0 | S25: =O25 -> 0 | V25: 0 | Z25: =V25 -> 0 | AC25: 0 | AG25: =AC25 -> 0 | AJ25: 0 | AN25: =AJ25 -> 0 | AQ25: 0 | AU25: =AQ25 -> 0 | AX25: 0 | BB25: =AX25 -> 0 | BE25: 0 | BI25: =BE25 -> 0 | BL25: 0 | BP25: =BL25 -> 0
J26: - | L26: - | Q26: - | S26: - | X26: - | Z26: - | AE26: - | AG26: - | AL26: - | AN26: - | AS26: - | AU26: - | AZ26: - | BB26: - | BG26: - | BI26: - | BN26: - | BP26: -
E28: Taxable Lump Sum Death Benefits (Gross Value) | H28: 0 | J28: =H28 -> 0 | L28: =H28 -> 0 | O28: 0 | Q28: =O28 -> 0 | S28: =O28 -> 0 | V28: 0 | X28: =V28 -> 0 | Z28: =V28 -> 0 | AC28: 0 | AE28: =AC28 -> 0 | AG28: =AC28 -> 0 | AJ28: 0 | AL28: =AJ28 -> 0 | AN28: =AJ28 -> 0 | AQ28: 0 | AS28: =AQ28 -> 0 | AU28: =AQ28 -> 0 | AX28: 0 | AZ28: =AX28 -> 0 | BB28: =AX28 -> 0 | BE28: 0 | BG28: =BE28 -> 0 | BI28: =BE28 -> 0 | BL28: 9 | BN28: =BL28 -> 9 | BP28: =BL28 -> 9
E30: Warning, once you have calculated the remaining AA for the member be aware that any further contributions may change the tapered calculation. For instance if the employer is planning to contribute the remaining AA for a member, the contribution they can make will be two thirds of the remaining AA that has been calculated. | H30: Totals | J30: =J7-J10+J12+(J18+J20-J22)-J28 -> 0 | L30: =L7-L10-L15+L25-L28 -> 0 | O30: Totals | Q30: =Q7-Q10+Q12+(Q18+Q20-Q22)-Q28 -> 0 | S30: =S7-S10-S15+S25-S28 -> 0 | X30: =X7-X10+X12+(X18+X20-X22)-X28 -> 0 | Z30: =Z7-Z10-Z15+Z25-Z28 -> 0 | AE30: =AE7-AE10+AE12+(AE18+AE20-AE22)-AE28 -> 0 | AG30: =AG7-AG10-AG15+AG25-AG28 -> 0 | AL30: =AL7-AL10+AL12+(AL18+AL20-AL22)-AL28 -> 0 | AN30: =AN7-AN10-AN15+AN25-AN28 -> 0 | AS30: =AS7-AS10+AS12+(AS18+AS20-AS22)-AS28 -> 0 | AU30: =AU7-AU10-AU15+AU25-AU28 -> 0 | AZ30: =AZ7-AZ10+AZ12+(AZ18+AZ20-AZ22)-AZ28 -> 0 | BB30: =BB7-BB10-BB15+BB25-BB28 -> 0 | BG30: =BG7-BG10+BG12+(BG18+BG20-BG22)-BG28 -> 0 | BI30: =BI7-BI10-BI15+BI25-BI28 -> 0 | BN30: =BN7-BN10+BN12+(BN18+BN20-BN22)-BN28 -> -9 | BP30: =BP7-BP10-BP15+BP25-BP28 -> -9
H32: Limit breached? | J32: =IF(J30>150002,"Yes","No") -> No | L32: =IF(L30>110000,"Yes","No") -> No | O32: Limit breached? | Q32: =IF(Q30>150002,"Yes","No") -> No | S32: =IF(S30>110000,"Yes","No") -> No | X32: =IF(X30>150002,"Yes","No") -> No | Z32: =IF(Z30>110000,"Yes","No") -> No | AE32: =IF(AE30>150002,"Yes","No") -> No | AG32: =IF(AG30>110000,"Yes","No") -> No | AL32: =IF(AL30>240002,"Yes","No") -> No | AN32: =IF(AN30>200000,"Yes","No") -> No | AS32: =IF(AS30>240002,"Yes","No") -> No | AU32: =IF(AU30>200000,"Yes","No") -> No | AZ32: =IF(AZ30>240002,"Yes","No") -> No | BB32: =IF(BB30>200000,"Yes","No") -> No | BG32: =IF(BG30>260002,"Yes","No") -> No | BI32: =IF(BI30>200000,"Yes","No") -> No | BN32: =IF(BN30>260002,"Yes","No") -> No | BP32: =IF(BP30>200000,"Yes","No") -> No
H34: Is the Taper Triggered? | K34: =IF((J32="YES")*AND(L32="YES"),"Yes","No") -> No | O34: Is the Taper Triggered? | R34: =IF((Q32="YES")*AND(S32="YES"),"Yes","No") -> No | V34: Is the Taper Triggered? | Y34: =IF((X32="YES")*AND(Z32="YES"),"Yes","No") -> No | AC34: Is the Taper Triggered? | AF34: =IF((AE32="YES")*AND(AG32="YES"),"Yes","No") -> No | AJ34: Is the Taper Triggered? | AM34: =IF((AL32="YES")*AND(AN32="YES"),"Yes","No") -> No | AQ34: Is the Taper Triggered? | AT34: =IF((AS32="YES")*AND(AU32="YES"),"Yes","No") -> No | AX34: Is the Taper Triggered? | BA34: =IF((AZ32="YES")*AND(BB32="YES"),"Yes","No") -> No | BE34: Is the Taper Triggered? | BH34: =IF((BG32="YES")*AND(BI32="YES"),"Yes","No") -> No | BL34: Is the Taper Triggered? | BO34: =IF((BN32="YES")*AND(BP32="YES"),"Yes","No") -> No
H35: Annual Allowance for 2016/17 | K35: =ROUNDUP(MAX(10000,0,IF(K34="Yes",40000-((J30-150000)/2),40000)),0) -> 40000 | O35: Annual Allowance for 2017/18 | R35: =ROUNDUP(MAX(10000,0,IF(R34="Yes",40000-((Q30-150000)/2),40000)),0) -> 40000 | V35: Annual Allowance for 2018/19 | Y35: =ROUNDUP(MAX(10000,0,IF(Y34="Yes",40000-((X30-150000)/2),40000)),0) -> 40000 | AC35: Annual Allowance for 2019/20 | AF35: =ROUNDUP(MAX(10000,0,IF(AF34="Yes",40000-((AE30-150000)/2),40000)),0) -> 40000 | AJ35: Annual Allowance for 2020/21 | AM35: =ROUNDUP(MAX(4000,0,IF(AM34="Yes",40000-((AL30-240000)/2),40000)),0) -> 40000 | AQ35: Annual Allowance for 2021/22 | AT35: =ROUNDUP(MAX(4000,0,IF(AT34="Yes",40000-((AS30-240000)/2),40000)),0) -> 40000 | AX35: Annual Allowance for 2022/23 | BA35: =ROUNDUP(MAX(4000,0,IF(BA34="Yes",40000-((AZ30-240000)/2),40000)),0) -> 40000 | BE35: Annual Allowance for 2023/24 | BH35: =ROUNDUP(MAX(10000,0,IF(BH34="Yes",60000-((BG30-260000)/2),60000)),0) -> 60000 | BL35: Annual Allowance for 2024/25 | BO35: =ROUNDUP(MAX(10000,0,IF(BO34="Yes",60000-((BN30-260000)/2),60000)),0) -> 60000
J42: Total Inputs | L42: =H7+H10+H12+H15+H18+H20+H22+H25+H28 -> 0 | Q42: Total Inputs | S42: =O7+O10+O12+O15+O18+O20+O22+O25+O28 -> 0 | X42: Total Inputs | Z42: =V7+V10+V12+V15+V18+V20+V22+V25+V28 -> 0 | AE42: Total Inputs | AG42: =AC7+AC10+AC12+AC15+AC18+AC20+AC22+AC25+AC28 -> 0 | AL42: Total Inputs | AN42: =AJ7+AJ10+AJ12+AJ15+AJ18+AJ20+AJ22+AJ25+AJ28 -> 0 | AS42: Total Inputs | AU42: =AQ7+AQ10+AQ12+AQ15+AQ18+AQ20+AQ22+AQ25+AQ28 -> 0 | AZ42: Total Inputs | BB42: =AX7+AX10+AX12+AX15+AX18+AX20+AX22+AX25+AX28 -> 0 | BG42: Total Inputs | BI42: =BE7+BE10+BE12+BE15+BE18+BE20+BE22+BE25+BE28 -> 0 | BN42: Total Inputs | BP42: =BL7+BL10+BL12+BL15+BL18+BL20+BL22+BL25+BL28 -> 9
J43: AA Input | L43: =(H12-H22)+H15+H18+H20 -> 0 | Q43: AA Input | S43: =(O12-O22)+O15+O18+O20 -> 0 | X43: AA Input | Z43: =(V12-V22)+V15+V18+V20 -> 0 | AE43: AA Input | AG43: =(AC12-AC22)+AC15+AC18+AC20 -> 0 | AL43: AA Input | AN43: =(AJ12-AJ22)+AJ15+AJ18+AJ20 -> 0 | AS43: AA Input | AU43: =(AQ12-AQ22)+AQ15+AQ18+AQ20 -> 0 | AZ43: AA Input | BB43: =(AX12-AX22)+AX15+AX18+AX20 -> 0 | BG43: AA Input | BI43: =(BE12-BE22)+BE15+BE18+BE20 -> 0 | BN43: AA Input | BP43: =(BL12-BL22)+BL15+BL18+BL20 -> 0

Sheet Summary Print Friendly
A1: Annual Allowance Calculator - Summary Workings built by M&G
B3: ='Carry Forward Summary Workings'!B3 -> 2021/22 | C3: ='Carry Forward Summary Workings'!C3 -> 2022/23 | D3: ='Carry Forward Summary Workings'!D3 -> 2023/24 | E3: ='Carry Forward Summary Workings'!E3 -> 2024/25
A5: Annual Allowance | B5: ='Carry Forward Summary Workings'!B5 -> 40000 | C5: ='Carry Forward Summary Workings'!C5 -> 40000 | D5: ='Carry Forward Summary Workings'!D5 -> 60000 | E5: ='Carry Forward Summary Workings'!E5 -> 60000
A7: Carry Forward | B7: ='Carry Forward Summary Workings'!B7 -> 120000 | C7: ='Carry Forward Summary Workings'!C7 -> 120000 | D7: ='Carry Forward Summary Workings'!D7 -> 120000 | E7: ='Carry Forward Summary Workings'!E7 -> 140000
A9: Maximum Allowance | B9: ='Carry Forward Summary Workings'!B9 -> 160000 | C9: ='Carry Forward Summary Workings'!C9 -> 160000 | D9: ='Carry Forward Summary Workings'!D9 -> 180000 | E9: ='Carry Forward Summary Workings'!E9 -> 200000
A11: Total Inputs | B11: ='Carry Forward Summary Workings'!B11 -> 0 | C11: ='Carry Forward Summary Workings'!C11 -> 0 | D11: ='Carry Forward Summary Workings'!D11 -> 0 | E11: ='Carry Forward Summary Workings'!E11 -> 0
A13: Unused | B13: ='Carry Forward Summary Workings'!B13 -> 40000 | C13: ='Carry Forward Summary Workings'!C13 -> 40000 | D13: ='Carry Forward Summary Workings'!D13 -> 60000 | E13: ='Carry Forward Summary Workings'!E13 -> 60000
A15: Excess over standard Annual Allowance | B15: ='Carry Forward Summary Workings'!B15 -> 0 | C15: ='Carry Forward Summary Workings'!C15 -> 0 | D15: ='Carry Forward Summary Workings'!D15 -> 0 | E15: ='Carry Forward Summary Workings'!E15 -> 0
A16: ='Carry Forward Summary Workings'!$A$16 -> 
A18: ='Carry Forward Summary Workings'!A18 -> Used by 2022/23 | B18: ='Carry Forward Summary Workings'!B18 -> 0
A19: ='Carry Forward Summary Workings'!A19 -> Used by 2023/24 | B19: ='Carry Forward Summary Workings'!B19 -> 0 | C19: ='Carry Forward Summary Workings'!C19 -> 0
A20: ='Carry Forward Summary Workings'!A20 -> Used by 2024/25 | B20: ='Carry Forward Summary Workings'!B20 -> 0 | C20: ='Carry Forward Summary Workings'!C20 -> 0 | D20: ='Carry Forward Summary Workings'!D20 -> 0
A21: Unused | B21: =MAX(0,B5-B11-B18-B19-B20) -> 40000 | C21: =MAX(0,C5-C11-C18-C19-C20) -> 40000 | D21: =MAX(0,D5-D11-D18-D19-D20) -> 60000 | E21: =MAX(0,E5-E11-E18-E19-E20) -> 60000 | G21: Check conditional formatting, for unused from three years ago and chargable amount warning.
A22: ='Carry Forward Summary Workings'!$A$22 -> Please note - the unused allowance from three tax years ago will not be available next tax year
A24: Total Allowance Remaining This Year | E24: ='Carry Forward Summary Workings'!E24 -> 200000
A26: Chargeable Amount | B26: ='Carry Forward Summary Workings'!B26 ->  | C26: ='Carry Forward Summary Workings'!C26 ->  | D26: ='Carry Forward Summary Workings'!D26 ->  | E26: ='Carry Forward Summary Workings'!E26 -> 
A27: ='Carry Forward Summary Workings'!$A$27 -> 

Sheet Tapered Calcs - Print Friendly
E1: Tapered Annual Allowance Calculations built by M&G
E3: ='Tapered AA Calculations'!E3 -> Instructions: Input relevant figures in white boxes. Tapered Allowance will be calculated where relevant. For income definitions see Pensions Tax Manual - PTM057100 | H3: 2016/17 Tax Year | O3: 2017/18 Tax Year | V3: 2018/19 Tax Year | AC3: 2019/20 Tax Year | AJ3: 2020/21 Tax Year | AQ3: 2021/22 Tax Year | AX3: 2022/23 Tax Year | BE3: 2023/24 Tax Year | BL3: 2024/25 Tax Year
J5: Adjusted Income | L5: Threshold Income | Q5: Adjusted Income | S5: Threshold Income | X5: Adjusted Income | Z5: Threshold Income | AE5: Adjusted Income | AG5: Threshold Income | AL5: Adjusted Income | AN5: Threshold Income | AS5: Adjusted Income | AU5: Threshold Income | AZ5: Adjusted Income | BB5: Threshold Income | BG5: Adjusted Income | BI5: Threshold Income | BN5: Adjusted Income | BP5: Threshold Income
E7: ='Tapered AA Calculations'!E7 -> Total Income | H7: ='Tapered AA Calculations'!H7 -> 0 | J7: ='Tapered AA Calculations'!J7 -> 0 | L7: ='Tapered AA Calculations'!L7 -> 0 | O7: ='Tapered AA Calculations'!O7 -> 0 | Q7: ='Tapered AA Calculations'!Q7 -> 0 | S7: ='Tapered AA Calculations'!S7 -> 0 | V7: ='Tapered AA Calculations'!V7 -> 0 | X7: ='Tapered AA Calculations'!X7 -> 0 | Z7: ='Tapered AA Calculations'!Z7 -> 0 | AC7: ='Tapered AA Calculations'!AC7 -> 0 | AE7: ='Tapered AA Calculations'!AE7 -> 0 | AG7: ='Tapered AA Calculations'!AG7 -> 0 | AJ7: ='Tapered AA Calculations'!AJ7 -> 0 | AL7: ='Tapered AA Calculations'!AL7 -> 0 | AN7: ='Tapered AA Calculations'!AN7 -> 0 | AQ7: ='Tapered AA Calculations'!AQ7 -> 0 | AS7: ='Tapered AA Calculations'!AS7 -> 0 | AU7: ='Tapered AA Calculations'!AU7 -> 0 | AX7: ='Tapered AA Calculations'!AX7 -> 0 | AZ7: ='Tapered AA Calculations'!AZ7 -> 0 | BB7: ='Tapered AA Calculations'!BB7 -> 0 | BE7: ='Tapered AA Calculations'!BE7 -> 0 | BG7: ='Tapered AA Calculations'!BG7 -> 0 | BI7: ='Tapered AA Calculations'!BI7 -> 0 | BL7: ='Tapered AA Calculations'!BL7 -> 0 | BN7: ='Tapered AA Calculations'!BN7 -> 0 | BP7: ='Tapered AA Calculations'!BP7 -> 0
E8: ='Tapered AA Calculations'!E8 -> (please remember to deduct net pay contributions from this figure) | J8: ='Tapered AA Calculations'!J8 -> - | L8: ='Tapered AA Calculations'!L8 -> - | Q8: ='Tapered AA Calculations'!Q8 -> - | S8: ='Tapered AA Calculations'!S8 -> - | X8: ='Tapered AA Calculations'!X8 -> - | Z8: ='Tapered AA Calculations'!Z8 -> - | AE8: ='Tapered AA Calculations'!AE8 -> - | AG8: ='Tapered AA Calculations'!AG8 -> - | AL8: ='Tapered AA Calculations'!AL8 -> - | AN8: ='Tapered AA Calculations'!AN8 -> - | AS8: ='Tapered AA Calculations'!AS8 -> - | AU8: ='Tapered AA Calculations'!AU8 -> - | AZ8: ='Tapered AA Calculations'!AZ8 -> - | BB8: ='Tapered AA Calculations'!BB8 -> - | BG8: ='Tapered AA Calculations'!BG8 -> - | BI8: ='Tapered AA Calculations'!BI8 -> - | BN8: ='Tapered AA Calculations'!BN8 -> - | BP8: ='Tapered AA Calculations'!BP8 -> -
E10: ='Tapered AA Calculations'!E10 -> Allowable Reliefs | H10: ='Tapered AA Calculations'!H10 -> 0 | J10: ='Tapered AA Calculations'!J10 -> 0 | L10: ='Tapered AA Calculations'!L10 -> 0 | O10: ='Tapered AA Calculations'!O10 -> 0 | Q10: ='Tapered AA Calculations'!Q10 -> 0 | S10: ='Tapered AA Calculations'!S10 -> 0 | V10: ='Tapered AA Calculations'!V10 -> 0 | X10: ='Tapered AA Calculations'!X10 -> 0 | Z10: ='Tapered AA Calculations'!Z10 -> 0 | AC10: ='Tapered AA Calculations'!AC10 -> 0 | AE10: ='Tapered AA Calculations'!AE10 -> 0 | AG10: ='Tapered AA Calculations'!AG10 -> 0 | AJ10: ='Tapered AA Calculations'!AJ10 -> 0 | AL10: ='Tapered AA Calculations'!AL10 -> 0 | AN10: ='Tapered AA Calculations'!AN10 -> 0 | AQ10: ='Tapered AA Calculations'!AQ10 -> 0 | AS10: ='Tapered AA Calculations'!AS10 -> 0 | AU10: ='Tapered AA Calculations'!AU10 -> 0 | AX10: ='Tapered AA Calculations'!AX10 -> 0 | AZ10: ='Tapered AA Calculations'!AZ10 -> 0 | BB10: ='Tapered AA Calculations'!BB10 -> 0 | BE10: ='Tapered AA Calculations'!BE10 -> 0 | BG10: ='Tapered AA Calculations'!BG10 -> 0 | BI10: ='Tapered AA Calculations'!BI10 -> 0 | BL10: ='Tapered AA Calculations'!BL10 -> 0 | BN10: ='Tapered AA Calculations'!BN10 -> 0 | BP10: ='Tapered AA Calculations'!BP10 -> 0
J11: ='Tapered AA Calculations'!J11 -> + | Q11: ='Tapered AA Calculations'!Q11 -> + | X11: ='Tapered AA Calculations'!X11 -> + | AE11: ='Tapered AA Calculations'!AE11 -> + | AL11: ='Tapered AA Calculations'!AL11 -> + | AS11: ='Tapered AA Calculations'!AS11 -> + | AZ11: ='Tapered AA Calculations'!AZ11 -> + | BG11: ='Tapered AA Calculations'!BG11 -> + | BN11: ='Tapered AA Calculations'!BN11 -> +
E12: ='Tapered AA Calculations'!E12 -> Net Pay Contributions | H12: ='Tapered AA Calculations'!H12 -> 0 | J12: ='Tapered AA Calculations'!J12 -> 0 | O12: ='Tapered AA Calculations'!O12 -> 0 | Q12: ='Tapered AA Calculations'!Q12 -> 0 | V12: ='Tapered AA Calculations'!V12 -> 0 | X12: ='Tapered AA Calculations'!X12 -> 0 | AC12: ='Tapered AA Calculations'!AC12 -> 0 | AE12: ='Tapered AA Calculations'!AE12 -> 0 | AJ12: ='Tapered AA Calculations'!AJ12 -> 0 | AL12: ='Tapered AA Calculations'!AL12 -> 0 | AQ12: ='Tapered AA Calculations'!AQ12 -> 0 | AS12: ='Tapered AA Calculations'!AS12 -> 0 | AX12: ='Tapered AA Calculations'!AX12 -> 0 | AZ12: ='Tapered AA Calculations'!AZ12 -> 0 | BE12: ='Tapered AA Calculations'!BE12 -> 0 | BG12: ='Tapered AA Calculations'!BG12 -> 0 | BL12: ='Tapered AA Calculations'!BL12 -> 0 | BN12: ='Tapered AA Calculations'!BN12 -> 0
E13: ='Tapered AA Calculations'!E13 -> (including any s226 contributions) | L13: ='Tapered AA Calculations'!L13 -> - | S13: ='Tapered AA Calculations'!S13 -> - | Z13: ='Tapered AA Calculations'!Z13 -> - | AG13: ='Tapered AA Calculations'!AG13 -> - | AN13: ='Tapered AA Calculations'!AN13 -> - | AU13: ='Tapered AA Calculations'!AU13 -> - | BB13: ='Tapered AA Calculations'!BB13 -> - | BI13: ='Tapered AA Calculations'!BI13 -> - | BP13: ='Tapered AA Calculations'!BP13 -> -
E15: ='Tapered AA Calculations'!E15 -> Relief at Source contributions (Gross) | H15: ='Tapered AA Calculations'!H15 -> 0 | J15: ='Tapered AA Calculations'!J15 -> 0 | L15: ='Tapered AA Calculations'!L15 -> 0 | O15: ='Tapered AA Calculations'!O15 -> 0 | Q15: ='Tapered AA Calculations'!Q15 -> 0 | S15: ='Tapered AA Calculations'!S15 -> 0 | V15: ='Tapered AA Calculations'!V15 -> 0 | X15: ='Tapered AA Calculations'!X15 -> 0 | Z15: ='Tapered AA Calculations'!Z15 -> 0 | AC15: ='Tapered AA Calculations'!AC15 -> 0 | AE15: ='Tapered AA Calculations'!AE15 -> 0 | AG15: ='Tapered AA Calculations'!AG15 -> 0 | AJ15: ='Tapered AA Calculations'!AJ15 -> 0 | AL15: ='Tapered AA Calculations'!AL15 -> 0 | AN15: ='Tapered AA Calculations'!AN15 -> 0 | AQ15: ='Tapered AA Calculations'!AQ15 -> 0 | AS15: ='Tapered AA Calculations'!AS15 -> 0 | AU15: ='Tapered AA Calculations'!AU15 -> 0 | AX15: ='Tapered AA Calculations'!AX15 -> 0 | AZ15: ='Tapered AA Calculations'!AZ15 -> 0 | BB15: ='Tapered AA Calculations'!BB15 -> 0 | BE15: ='Tapered AA Calculations'!BE15 -> 0 | BG15: ='Tapered AA Calculations'!BG15 -> 0 | BI15: ='Tapered AA Calculations'!BI15 -> 0 | BL15: ='Tapered AA Calculations'!BL15 -> 0 | BN15: ='Tapered AA Calculations'!BN15 -> 0 | BP15: ='Tapered AA Calculations'!BP15 -> 0
J16: ='Tapered AA Calculations'!J16 -> + | Q16: ='Tapered AA Calculations'!Q16 -> + | X16: ='Tapered AA Calculations'!X16 -> + | AE16: ='Tapered AA Calculations'!AE16 -> + | AL16: ='Tapered AA Calculations'!AL16 -> + | AS16: ='Tapered AA Calculations'!AS16 -> + | AZ16: ='Tapered AA Calculations'!AZ16 -> + | BG16: ='Tapered AA Calculations'!BG16 -> + | BN16: ='Tapered AA Calculations'!BN16 -> +
E17: ='Tapered AA Calculations'!E17 -> Value of employer pension contributions
E18: ='Tapered AA Calculations'!E18 -> Employer Penson Contributions to Money Purchase | H18: ='Tapered AA Calculations'!H18 -> 0 | J18: ='Tapered AA Calculations'!J18 -> 0 | O18: ='Tapered AA Calculations'!O18 -> 0 | Q18: ='Tapered AA Calculations'!Q18 -> 0 | V18: ='Tapered AA Calculations'!V18 -> 0 | X18: ='Tapered AA Calculations'!X18 -> 0 | AC18: ='Tapered AA Calculations'!AC18 -> 0 | AE18: ='Tapered AA Calculations'!AE18 -> 0 | AJ18: ='Tapered AA Calculations'!AJ18 -> 0 | AL18: ='Tapered AA Calculations'!AL18 -> 0 | AQ18: ='Tapered AA Calculations'!AQ18 -> 0 | AS18: ='Tapered AA Calculations'!AS18 -> 0 | AX18: ='Tapered AA Calculations'!AX18 -> 0 | AZ18: ='Tapered AA Calculations'!AZ18 -> 0 | BE18: ='Tapered AA Calculations'!BE18 -> 0 | BG18: ='Tapered AA Calculations'!BG18 -> 0 | BL18: ='Tapered AA Calculations'!BL18 -> 0 | BN18: ='Tapered AA Calculations'!BN18 -> 0
J19: ='Tapered AA Calculations'!J19 -> + | Q19: ='Tapered AA Calculations'!Q19 -> + | X19: ='Tapered AA Calculations'!X19 -> + | AE19: ='Tapered AA Calculations'!AE19 -> + | AL19: ='Tapered AA Calculations'!AL19 -> + | AS19: ='Tapered AA Calculations'!AS19 -> + | AZ19: ='Tapered AA Calculations'!AZ19 -> + | BG19: ='Tapered AA Calculations'!BG19 -> + | BN19: ='Tapered AA Calculations'!BN19 -> +
E20: ='Tapered AA Calculations'!E20 -> Total DB Pension Input Amount for year | H20: ='Tapered AA Calculations'!H20 -> 0 | J20: ='Tapered AA Calculations'!J20 -> 0 | O20: ='Tapered AA Calculations'!O20 -> 0 | Q20: ='Tapered AA Calculations'!Q20 -> 0 | V20: ='Tapered AA Calculations'!V20 -> 0 | X20: ='Tapered AA Calculations'!X20 -> 0 | AC20: ='Tapered AA Calculations'!AC20 -> 0 | AE20: ='Tapered AA Calculations'!AE20 -> 0 | AJ20: ='Tapered AA Calculations'!AJ20 -> 0 | AL20: ='Tapered AA Calculations'!AL20 -> 0 | AQ20: ='Tapered AA Calculations'!AQ20 -> 0 | AS20: ='Tapered AA Calculations'!AS20 -> 0 | AX20: ='Tapered AA Calculations'!AX20 -> 0 | AZ20: ='Tapered AA Calculations'!AZ20 -> 0 | BE20: ='Tapered AA Calculations'!BE20 -> 0 | BG20: ='Tapered AA Calculations'!BG20 -> 0 | BL20: ='Tapered AA Calculations'!BL20 -> 0 | BN20: ='Tapered AA Calculations'!BN20 -> 0
J21: ='Tapered AA Calculations'!J21 -> - | Q21: ='Tapered AA Calculations'!Q21 -> - | X21: ='Tapered AA Calculations'!X21 -> - | AE21: ='Tapered AA Calculations'!AE21 -> - | AL21: ='Tapered AA Calculations'!AL21 -> - | AS21: ='Tapered AA Calculations'!AS21 -> - | AZ21: ='Tapered AA Calculations'!AZ21 -> - | BG21: ='Tapered AA Calculations'!BG21 -> - | BN21: ='Tapered AA Calculations'!BN21 -> -
E22: ='Tapered AA Calculations'!E22 -> Total gross employee contribution to DB scheme(s) included above | H22: ='Tapered AA Calculations'!H22 -> 0 | J22: ='Tapered AA Calculations'!J22 -> 0 | O22: ='Tapered AA Calculations'!O22 -> 0 | Q22: ='Tapered AA Calculations'!Q22 -> 0 | V22: ='Tapered AA Calculations'!V22 -> 0 | X22: ='Tapered AA Calculations'!X22 -> 0 | AC22: ='Tapered AA Calculations'!AC22 -> 0 | AE22: ='Tapered AA Calculations'!AE22 -> 0 | AJ22: ='Tapered AA Calculations'!AJ22 -> 0 | AL22: ='Tapered AA Calculations'!AL22 -> 0 | AQ22: ='Tapered AA Calculations'!AQ22 -> 0 | AS22: ='Tapered AA Calculations'!AS22 -> 0 | AX22: ='Tapered AA Calculations'!AX22 -> 0 | AZ22: ='Tapered AA Calculations'!AZ22 -> 0 | BE22: ='Tapered AA Calculations'!BE22 -> 0 | BG22: ='Tapered AA Calculations'!BG22 -> 0 | BL22: ='Tapered AA Calculations'!BL22 -> 0 | BN22: ='Tapered AA Calculations'!BN22 -> 0
L24: ='Tapered AA Calculations'!L24 -> + | S24: ='Tapered AA Calculations'!S24 -> + | Z24: ='Tapered AA Calculations'!Z24 -> + | AG24: ='Tapered AA Calculations'!AG24 -> + | AN24: ='Tapered AA Calculations'!AN24 -> + | AU24: ='Tapered AA Calculations'!AU24 -> + | BB24: ='Tapered AA Calculations'!BB24 -> + | BI24: ='Tapered AA Calculations'!BI24 -> + | BP24: ='Tapered AA Calculations'!BP24 -> +
E25: ='Tapered AA Calculations'!E25 -> Employment Income given up post 09/07/15 | H25: ='Tapered AA Calculations'!H25 -> 0 | J25: ='Tapered AA Calculations'!J25 -> 0 | L25: ='Tapered AA Calculations'!L25 -> 0 | O25: ='Tapered AA Calculations'!O25 -> 0 | Q25: ='Tapered AA Calculations'!Q25 -> 0 | S25: ='Tapered AA Calculations'!S25 -> 0 | V25: ='Tapered AA Calculations'!V25 -> 0 | X25: ='Tapered AA Calculations'!X25 -> 0 | Z25: ='Tapered AA Calculations'!Z25 -> 0 | AC25: ='Tapered AA Calculations'!AC25 -> 0 | AE25: ='Tapered AA Calculations'!AE25 -> 0 | AG25: ='Tapered AA Calculations'!AG25 -> 0 | AJ25: ='Tapered AA Calculations'!AJ25 -> 0 | AL25: ='Tapered AA Calculations'!AL25 -> 0 | AN25: ='Tapered AA Calculations'!AN25 -> 0 | AQ25: ='Tapered AA Calculations'!AQ25 -> 0 | AS25: ='Tapered AA Calculations'!AS25 -> 0 | AU25: ='Tapered AA Calculations'!AU25 -> 0 | AX25: ='Tapered AA Calculations'!AX25 -> 0 | AZ25: ='Tapered AA Calculations'!AZ25 -> 0 | BB25: ='Tapered AA Calculations'!BB25 -> 0 | BE25: ='Tapered AA Calculations'!BE25 -> 0 | BG25: ='Tapered AA Calculations'!BG25 -> 0 | BI25: ='Tapered AA Calculations'!BI25 -> 0 | BL25: ='Tapered AA Calculations'!BL25 -> 0 | BN25: ='Tapered AA Calculations'!BN25 -> 0 | BP25: ='Tapered AA Calculations'!BP25 -> 0
J26: ='Tapered AA Calculations'!J26 -> - | L26: ='Tapered AA Calculations'!L26 -> - | Q26: ='Tapered AA Calculations'!Q26 -> - | S26: ='Tapered AA Calculations'!S26 -> - | X26: ='Tapered AA Calculations'!X26 -> - | Z26: ='Tapered AA Calculations'!Z26 -> - | AE26: ='Tapered AA Calculations'!AE26 -> - | AG26: ='Tapered AA Calculations'!AG26 -> - | AL26: ='Tapered AA Calculations'!AL26 -> - | AN26: ='Tapered AA Calculations'!AN26 -> - | AS26: ='Tapered AA Calculations'!AS26 -> - | AU26: ='Tapered AA Calculations'!AU26 -> - | AZ26: ='Tapered AA Calculations'!AZ26 -> - | BB26: ='Tapered AA Calculations'!BB26 -> - | BG26: ='Tapered AA Calculations'!BG26 -> - | BI26: ='Tapered AA Calculations'!BI26 -> - | BN26: ='Tapered AA Calculations'!BN26 -> - | BP26: ='Tapered AA Calculations'!BP26 -> -
E28: ='Tapered AA Calculations'!E28 -> Taxable Lump Sum Death Benefits (Gross Value) | H28: ='Tapered AA Calculations'!H28 -> 0 | J28: ='Tapered AA Calculations'!J28 -> 0 | L28: ='Tapered AA Calculations'!L28 -> 0 | O28: ='Tapered AA Calculations'!O28 -> 0 | Q28: ='Tapered AA Calculations'!Q28 -> 0 | S28: ='Tapered AA Calculations'!S28 -> 0 | V28: ='Tapered AA Calculations'!V28 -> 0 | X28: ='Tapered AA Calculations'!X28 -> 0 | Z28: ='Tapered AA Calculations'!Z28 -> 0 | AC28: ='Tapered AA Calculations'!AC28 -> 0 | AE28: ='Tapered AA Calculations'!AE28 -> 0 | AG28: ='Tapered AA Calculations'!AG28 -> 0 | AJ28: ='Tapered AA Calculations'!AJ28 -> 0 | AL28: ='Tapered AA Calculations'!AL28 -> 0 | AN28: ='Tapered AA Calculations'!AN28 -> 0 | AQ28: ='Tapered AA Calculations'!AQ28 -> 0 | AS28: ='Tapered AA Calculations'!AS28 -> 0 | AU28: ='Tapered AA Calculations'!AU28 -> 0 | AX28: ='Tapered AA Calculations'!AX28 -> 0 | AZ28: ='Tapered AA Calculations'!AZ28 -> 0 | BB28: ='Tapered AA Calculations'!BB28 -> 0 | BE28: ='Tapered AA Calculations'!BE28 -> 0 | BG28: ='Tapered AA Calculations'!BG28 -> 0 | BI28: ='Tapered AA Calculations'!BI28 -> 0 | BL28: ='Tapered AA Calculations'!BL28 -> 9 | BN28: ='Tapered AA Calculations'!BN28 -> 9 | BP28: ='Tapered AA Calculations'!BP28 -> 9
E30: ='Tapered AA Calculations'!E30 -> Warning, once you have calculated the remaining AA for the member be aware that any further contributions may change the tapered calculation. For instance if the employer is planning to contribute the remaining AA for a member, the contribution they can make will be two thirds of the remaining AA that has been calculated. | H30: Totals | J30: ='Tapered AA Calculations'!J30 -> 0 | L30: ='Tapered AA Calculations'!L30 -> 0 | O30: Totals | Q30: ='Tapered AA Calculations'!Q30 -> 0 | S30: ='Tapered AA Calculations'!S30 -> 0 | X30: ='Tapered AA Calculations'!X30 -> 0 | Z30: ='Tapered AA Calculations'!Z30 -> 0 | AE30: ='Tapered AA Calculations'!AE30 -> 0 | AG30: ='Tapered AA Calculations'!AG30 -> 0 | AL30: ='Tapered AA Calculations'!AL30 -> 0 | AN30: ='Tapered AA Calculations'!AN30 -> 0 | AS30: ='Tapered AA Calculations'!AS30 -> 0 | AU30: ='Tapered AA Calculations'!AU30 -> 0 | AZ30: ='Tapered AA Calculations'!AZ30 -> 0 | BB30: ='Tapered AA Calculations'!BB30 -> 0 | BG30: ='Tapered AA Calculations'!BG30 -> 0 | BI30: ='Tapered AA Calculations'!BI30 -> 0 | BN30: ='Tapered AA Calculations'!BN30 -> -9 | BP30: ='Tapered AA Calculations'!BP30 -> -9
H32: Limit breached? | J32: ='Tapered AA Calculations'!J32 -> No | L32: ='Tapered AA Calculations'!L32 -> No | O32: Limit breached? | Q32: ='Tapered AA Calculations'!Q32 -> No | S32: ='Tapered AA Calculations'!S32 -> No | X32: ='Tapered AA Calculations'!X32 -> No | Z32: ='Tapered AA Calculations'!Z32 -> No | AE32: ='Tapered AA Calculations'!AE32 -> No | AG32: ='Tapered AA Calculations'!AG32 -> No | AL32: ='Tapered AA Calculations'!AL32 -> No | AN32: ='Tapered AA Calculations'!AN32 -> No | AS32: ='Tapered AA Calculations'!AS32 -> No | AU32: ='Tapered AA Calculations'!AU32 -> No | AZ32: ='Tapered AA Calculations'!AZ32 -> No | BB32: ='Tapered AA Calculations'!BB32 -> No | BG32: ='Tapered AA Calculations'!BG32 -> No | BI32: ='Tapered AA Calculations'!BI32 -> No | BN32: ='Tapered AA Calculations'!BN32 -> No | BP32: ='Tapered AA Calculations'!BP32 -> No
H34: ='Tapered AA Calculations'!H34 -> Is the Taper Triggered? | K34: ='Tapered AA Calculations'!K34 -> No | O34: ='Tapered AA Calculations'!O34 -> Is the Taper Triggered? | R34: ='Tapered AA Calculations'!R34 -> No | V34: ='Tapered AA Calculations'!V34 -> Is the Taper Triggered? | Y34: ='Tapered AA Calculations'!Y34 -> No | AC34: ='Tapered AA Calculations'!AC34 -> Is the Taper Triggered? | AF34: ='Tapered AA Calculations'!AF34 -> No | AJ34: ='Tapered AA Calculations'!AJ34 -> Is the Taper Triggered? | AM34: ='Tapered AA Calculations'!AM34 -> No | AQ34: ='Tapered AA Calculations'!AQ34 -> Is the Taper Triggered? | AT34: ='Tapered AA Calculations'!AT34 -> No | AX34: ='Tapered AA Calculations'!AX34 -> Is the Taper Triggered? | BA34: ='Tapered AA Calculations'!BA34 -> No | BE34: ='Tapered AA Calculations'!BE34 -> Is the Taper Triggered? | BH34: ='Tapered AA Calculations'!BH34 -> No | BL34: ='Tapered AA Calculations'!BL34 -> Is the Taper Triggered? | BO34: ='Tapered AA Calculations'!BO34 -> No
H35: ='Tapered AA Calculations'!H35 -> Annual Allowance for 2016/17 | K35: ='Tapered AA Calculations'!K35 -> 40000 | O35: ='Tapered AA Calculations'!O35 -> Annual Allowance for 2017/18 | R35: ='Tapered AA Calculations'!R35 -> 40000 | V35: ='Tapered AA Calculations'!V35 -> Annual Allowance for 2018/19 | Y35: ='Tapered AA Calculations'!Y35 -> 40000 | AC35: ='Tapered AA Calculations'!AC35 -> Annual Allowance for 2019/20 | AF35: ='Tapered AA Calculations'!AF35 -> 40000 | AJ35: ='Tapered AA Calculations'!AJ35 -> Annual Allowance for 2020/21 | AM35: ='Tapered AA Calculations'!AM35 -> 40000 | AQ35: ='Tapered AA Calculations'!AQ35 -> Annual Allowance for 2021/22 | AT35: ='Tapered AA Calculations'!AT35 -> 40000 | AX35: ='Tapered AA Calculations'!AX35 -> Annual Allowance for 2022/23 | BA35: ='Tapered AA Calculations'!BA35 -> 40000 | BE35: ='Tapered AA Calculations'!BE35 -> Annual Allowance for 2023/24 | BH35: ='Tapered AA Calculations'!BH35 -> 60000 | BL35: ='Tapered AA Calculations'!BL35 -> Annual Allowance for 2024/25 | BO35: ='Tapered AA Calculations'!BO35 -> 60000
J42: Total Inputs | L42: =H7+H10+H12+H15+H18+H20+H22+H25+H28 -> 0 | Q42: Total Inputs | S42: =O7+O10+O12+O15+O18+O20+O22+O25+O28 -> 0 | X42: Total Inputs | Z42: =V7+V10+V12+V15+V18+V20+V22+V25+V28 -> 0 | AE42: Total Inputs | AG42: =AC7+AC10+AC12+AC15+AC18+AC20+AC22+AC25+AC28 -> 0 | AL42: Total Inputs | AN42: =AJ7+AJ10+AJ12+AJ15+AJ18+AJ20+AJ22+AJ25+AJ28 -> 0 | AS42: Total Inputs | AU42: =AQ7+AQ10+AQ12+AQ15+AQ18+AQ20+AQ22+AQ25+AQ28 -> 0 | AZ42: Total Inputs | BB42: =AX7+AX10+AX12+AX15+AX18+AX20+AX22+AX25+AX28 -> 0 | BG42: Total Inputs | BI42: =BE7+BE10+BE12+BE15+BE18+BE20+BE22+BE25+BE28 -> 0 | BN42: Total Inputs | BP42: =BL7+BL10+BL12+BL15+BL18+BL20+BL22+BL25+BL28 -> 9
J43: AA Input | L43: =(H12-H22)+H15+H18+H20 -> 0 | Q43: AA Input | S43: =(O12-O22)+O15+O18+O20 -> 0 | X43: AA Input | Z43: =(V12-V22)+V15+V18+V20 -> 0 | AE43: AA Input | AG43: =(AC12-AC22)+AC15+AC18+AC20 -> 0 | AL43: AA Input | AN43: =(AJ12-AJ22)+AJ15+AJ18+AJ20 -> 0 | AS43: AA Input | AU43: =(AQ12-AQ22)+AQ15+AQ18+AQ20 -> 0 | AZ43: AA Input | BB43: =(AX12-AX22)+AX15+AX18+AX20 -> 0 | BG43: AA Input | BI43: =(BE12-BE22)+BE15+BE18+BE20 -> 0 | BN43: AA Input | BP43: =(BL12-BL22)+BL15+BL18+BL20 -> 0
